bitfinex/quotes_ETHUSD_20241130
["timestamp","ask_amount","ask_price","bid_price","bid_amount"]
[1732938753611,0.55,3653.3,3652.3,1.6263]
[1732938753805,0.57385643,3653.6,3652.3,1.6263]
[1732938754218,0.55,3653.6,3652.3,1.6263]
[1732938754428,0.55,3653.6,3652.4,0.21799243]
[1732938754634,0.02385643,3653.5,3652.4,0.21799243]
[1732938754833,0.57385643,3653.5,3652.4,0.21799243]
[1732938755443,0.02385643,3653.5,3652.4,0.21799243]
[1732938757309,1.1314,3653.4,3652.4,0.21799243]
[1732938757540,0.57385643,3653.3,3652.4,0.21799243]
[1732938757726,0.55,3653.3,3652.5,0.23979167]
[1732938760554,0.55,3653.3,3652.3,1.6263]
[1732938760940,0.57385643,3653.2,3652.3,1.6263]
[1732938761254,0.55,3653.3,3652.3,1.6263]
[1732938763421,1.1314,3653.8,3652.4,0.30117735]
[1732938763629,0.55,3653.7,3652.5,1.5404]
[1732938763964,0.55,3653.7,3652.6,0.18415774]
[1732938765420,0.02385643,3653.6,3652.6,0.18415774]
[1732938766237,0.55,3653.7,3652.5,1.8142]
[1732938766466,0.57385643,3653.7,3652.5,1.8142]
[1732938766852,0.55,3653.7,3652.5,1.8142]
[1732938767439,0.57385643,3653.7,3652.5,1.8142]
[1732938767830,1.1314,3653.8,3652.5,1.8142]
[1732938768030,1.1314,3653.8,3652.6,0.18142]
[1732938768533,0.02385643,3653.7,3652.6,0.18142]
[1732938768835,1.1314,3653.8,3652.6,0.18142]
[1732938768836,1.1314,3653.8,3652.8,0.53824579]
[1732938769044,0.55,3653.7,3652.8,0.53824579]
[1732938771737,0.02385643,3654.3,3652.8,0.53824579]
[1732938771738,0.55,3653.5,3652.8,0.53824579]
[1732938771940,0.55,3653.3,3652.8,0.53824579]
[1732938773198,0.02385643,3653.9,3652.8,0.53824579]
[1732938773199,1.1314,3653.8,3652.9,1.5113]
[1732938773964,0.02385643,3653.7,3652.9,1.5113]
[1732938774355,0.55,3653.7,3652.9,1.5113]
[1732938774752,1.1314,3653.8,3652.9,1.5113]
[1732938774753,0.16665977,3654.4,3653.0,0.20495458]
[1732938775083,0.14280334,3654.4,3653.1,0.02737239]
[1732938775574,0.02385643,3654.7,3653.1,1.5113]
[1732938775773,0.02385643,3655.0,3653.2,0.2738]
[1732938776541,0.02385643,3655.0,3653.5,1.5113]
[1732938776737,0.02385643,3655.0,3653.6,0.17851]
[1732938776948,0.02385643,3655.0,3654.9,2.73605]
[1732938777256,1.1314,3655.1,3655.0,2.73597]
[1732938778260,1.6814,3655.1,3655.0,2.73597]
[1732938778460,1.1314,3655.1,3655.0,2.68597]
[1732938779268,1.1314,3655.6,3655.0,2.68597]
[1732938779473,0.02385643,3655.5,3655.0,2.68597]
[1732938779655,0.55,3655.5,3654.3,1.6033]
[1732938780168,2.10805459,3655.7,3654.3,1.6033]
[1732938780383,0.55,3655.8,3654.3,1.6033]
[1732938780726,0.57385643,3655.8,3654.3,1.6033]
[1732938780878,0.55,3655.8,3654.4,0.16033]
[1732938781080,0.55,3655.8,3654.5,3.0]
[1732938781284,1.15525643,3655.9,3654.4,0.16033]
[1732938781449,1.1314,3655.9,3654.4,0.16033]
[1732938782050,0.02385643,3655.8,3654.4,0.16033]
[1732938782254,0.02385643,3655.8,3654.5,0.176363]
[1732938782798,0.55,3655.8,3654.6,1.6033]
[1732938783001,0.55,3655.8,3654.9,3.0]
[1732938783152,2.10805459,3655.6,3654.6,1.6033]
[1732938783353,0.02385643,3655.5,3654.9,3.0]
[1732938783585,0.02385643,3655.5,3654.6,1.6033]
[1732938784295,2.10805459,3655.6,3654.8,0.53826643]
[1732938784509,0.02385643,3655.5,3654.8,0.53826643]
[1732938784717,2.10805459,3655.6,3654.8,0.53826643]
[1732938784870,0.02385643,3655.5,3654.8,0.53826643]
[1732938785207,1.6814,3655.5,3654.8,0.75242307]
[1732938785411,0.02385643,3655.4,3654.8,0.75242307]
[1732938785817,3.23945459,3655.9,3654.8,0.75242307]
[1732938787663,2.10805459,3655.9,3654.8,0.75242307]
[1732938787864,2.10805459,3655.9,3654.9,1.5411]
[1732938788174,2.10805459,3655.9,3655.0,0.22935231]
[1732938789910,2.10805459,3655.9,3655.1,1.5411]
[1732938790810,1.1314,3655.8,3655.1,1.5411]
[1732938791605,2.10805459,3655.9,3655.1,1.5411]
[1732938791809,2.10805459,3655.9,3655.3,0.55712212]
[1732938792472,2.10805459,3655.5,3655.3,0.55712212]
[1732938792867,2.10805459,3655.9,3655.3,0.55712212]
[1732938796076,0.55,3655.8,3655.3,0.55712212]
[1732938796474,2.65805459,3655.8,3655.3,0.55712212]
[1732938797013,2.10805459,3656.2,3655.4,1.5411]
[1732938798600,2.10805459,3656.2,3655.6,1.5411]
[1732938800995,2.10805459,3656.2,3656.0,0.55487727]
[1732938801333,2.26335439,3656.6,3656.0,0.55487727]
[1732938801503,2.26335439,3656.6,3656.1,1.5411]
[1732938801706,2.26335439,3656.6,3656.2,0.20959773]
[1732938802035,0.1552998,3656.6,3656.2,0.20959773]
[1732938802992,2.26335439,3656.6,3656.2,0.20959773]
[1732938804440,0.1552998,3656.6,3656.3,1.5411]
[1732938804741,0.1552998,3656.6,3656.4,0.17506977]
[1732938812133,0.1552998,3656.6,3656.3,4.5845]
[1732938812606,0.1552998,3656.6,3656.3,1.5845]
[1732938813848,0.1552998,3656.6,3656.3,1.61184464]
[1732938814015,2.10805459,3657.1,3656.3,1.61184464]
[1732938814648,2.10805459,3656.7,3656.3,1.5845]
[1732938814860,2.10805459,3656.7,3656.4,0.15845]
[1732938816539,0.02385643,3656.6,3656.0,5.55487727]
[1732938816740,2.10805459,3656.1,3656.0,5.0]
[1732938817406,1.6814,3656.6,3656.0,5.0]
[1732938817739,2.10805459,3656.1,3656.0,5.0]
[1732938818271,1.1314,3657.6,3656.0,6.5845]
[1732938818440,2.10805459,3656.6,3656.0,6.5845]
[1732938818802,2.10805459,3656.6,3656.1,3.0]
[1732938820915,2.10805459,3656.6,3656.2,0.02734798]
[1732938821102,2.10805459,3656.6,3656.1,3.0]
[1732938821103,2.10805459,3657.0,3656.1,3.0]
[1732938821305,2.10805459,3657.0,3656.2,1.5845]
[1732938821813,2.10805459,3657.0,3656.4,0.54293512]
[1732938822052,2.10805459,3657.0,3656.2,1.25243512]
[1732938822932,2.10805459,3656.6,3656.2,1.25243512]
[1732938823136,2.10805459,3656.6,3656.1,3.0]
[1732938823339,2.13191102,3656.6,3656.1,3.0]
[1732938823643,2.10805459,3656.2,3656.1,3.0]
[1732938824518,2.10805459,3656.2,3656.1,3.53565218]
[1732938825644,1.4634,3656.8,3656.1,3.53565218]
[1732938825862,2.10805459,3656.4,3656.1,3.53565218]
[1732938827054,2.10805459,3656.4,3656.1,3.56300065]
[1732938827240,2.10805459,3656.8,3656.1,3.53565218]
[1732938829661,2.10805459,3656.8,3656.2,1.6116]
[1732938831127,1.86404146,3657.3,3656.2,1.6116]
[1732938831440,2.10805459,3656.8,3656.2,1.6116]
[1732938832267,2.10805459,3656.8,3656.2,1.63894537]
[1732938832426,2.10805459,3656.8,3656.2,1.6116]
[1732938832865,2.10805459,3656.8,3656.2,1.8854]
[1732938834183,2.10805459,3656.4,3656.0,5.0]
[1732938835674,2.10805459,3656.4,3656.0,5.55962122]
[1732938838998,3.57145459,3656.4,3656.0,5.0]
[1732938839350,2.10805459,3656.1,3655.9,0.53574116]
[1732938846330,2.10805459,3656.4,3656.0,1.6116]
[1732938847134,2.10805459,3656.4,3656.0,1.63894879]
[1732938847418,2.10805459,3656.4,3656.1,0.217469]
[1732938849724,2.10805459,3656.4,3656.3,3.0]
[1732938850192,2.10805459,3656.4,3656.1,0.217469]
[1732938850387,2.10805459,3656.4,3656.3,3.0]
[1732938850705,2.10805459,3656.4,3656.1,0.217469]
[1732938850900,2.10805459,3656.4,3656.2,0.23648102]
[1732938851113,2.10805459,3656.4,3656.0,1.6116]
[1732938851286,2.10805459,3656.4,3655.9,0.53574116]
[1732938851483,2.10805459,3656.2,3655.9,0.56309095]
[1732938851828,2.10805459,3656.2,3655.9,0.53574116]
[1732938852154,2.10805459,3656.2,3656.1,1.574]
[1732938852458,2.10805459,3656.5,3656.1,1.78770909]
[1732938853628,2.10805459,3656.5,3655.9,0.53574116]
[1732938853810,2.10805459,3656.0,3655.9,0.53574116]
[1732938854225,2.10805459,3656.0,3655.6,0.2738]
[1732938854449,2.10805459,3656.0,3655.2,1.574]
[1732938854450,2.10805459,3656.0,3655.3,0.02735218]
[1732938854659,2.10805459,3656.0,3655.3,0.55967411]
[1732938854957,2.10805459,3656.0,3655.4,0.52158143]
[1732938855108,2.10805459,3656.0,3655.4,0.24778143]
[1732938856458,1.86404146,3657.3,3655.4,0.24778143]
[1732938856459,1.86404146,3657.3,3655.5,1.574]
[1732938856612,1.86404146,3657.3,3655.5,1.8478]
[1732938856613,2.10805459,3656.3,3655.5,1.8478]
[1732938856961,2.10805459,3657.0,3655.5,1.8478]
[1732938856962,2.10805459,3655.9,3655.5,1.8478]
[1732938857268,2.10805459,3655.9,3655.2,1.574]
[1732938857548,2.10805459,3655.9,3655.8,3.53965854]
[1732938857708,2.10805459,3655.9,3655.8,0.53965854]
[1732938859153,2.10805459,3656.0,3655.8,0.53965854]
[1732938860446,2.10805459,3656.0,3655.8,0.75745439]
[1732938860631,2.10805459,3656.0,3655.8,0.21779585]
[1732938862533,2.10805459,3656.0,3654.7,0.02735146]
[1732938862534,2.10805459,3656.0,3654.8,1.6383]
[1732938862737,2.10805459,3655.0,3654.9,0.56041043]
[1732938862949,0.94944597,3655.0,3654.9,0.56041043]
[1732938863471,0.94944597,3655.3,3654.9,0.56041043]
[1732938863623,0.94944597,3655.3,3654.9,0.83421043]
[1732938863959,0.94944597,3655.0,3654.9,0.78421043]
[1732938864319,0.94944597,3655.0,3654.9,0.51041043]
[1732938864660,0.94944597,3655.0,3654.9,0.78421043]
[1732938864858,0.02385643,3656.9,3654.9,0.78421043]
[1732938864859,2.10363058,3655.3,3654.9,0.51041043]
[1732938865234,2.10363058,3655.3,3655.0,0.02735621]
[1732938865426,2.10363058,3655.3,3654.9,0.51041043]
[1732938865866,2.10363058,3655.3,3654.5,1.6383]
[1732938865867,2.10363058,3655.3,3654.6,0.2738]
[1732938866435,2.10363058,3655.3,3654.6,0.30115699]
[1732938866635,2.10363058,3655.3,3654.6,0.2738]
[1732938866959,2.10363058,3655.3,3654.6,0.30115699]
[1732938867463,2.10363058,3655.3,3654.8,0.82505288]
[1732938867759,2.10363058,3655.1,3654.8,0.55125288]
[1732938868126,2.10363058,3655.1,3654.8,0.50125288]
[1732938869061,2.10363058,3655.1,3654.8,2.08005288]
[1732938869360,2.10363058,3655.5,3654.9,0.20800529]
[1732938870127,2.10363058,3655.1,3654.8,5.08005288]
[1732938870465,2.10363058,3655.1,3654.8,2.08005288]
[1732938870936,2.10363058,3655.1,3654.8,0.50125288]
[1732938872124,2.10363058,3655.1,3654.8,0.45125288]
[1732938873569,2.10363058,3655.1,3654.9,0.2738]
[1732938878533,2.05363058,3655.1,3654.9,0.2738]
[1732938880897,2.05363058,3655.1,3654.8,0.40125288]
[1732938886806,2.05363058,3655.1,3654.9,3.0]
[1732938887094,0.94929804,3654.9,3654.8,0.40125288]
[1732938887497,0.94929804,3654.9,3654.8,0.35125288]
[1732938889288,0.55,3654.8,3653.3,1.6436]
[1732938889473,0.94929804,3653.4,3652.2,1.6436]
[1732938889700,0.94929804,3652.7,3652.3,0.19295583]
[1732938889891,0.33297685,3652.7,3652.3,0.19295583]
[1732938890270,0.33297685,3652.7,3652.4,0.2738]
[1732938891369,0.33297685,3652.7,3652.6,0.55094667]
[1732938891870,0.2559712,3654.2,3652.6,0.55094667]
[1732938892106,0.55,3654.1,3652.6,0.82474667]
[1732938892275,0.94929804,3652.7,3652.6,0.82474667]
[1732938892865,0.55,3654.1,3652.6,0.55094667]
[1732938892866,2.10628176,3652.8,3652.6,0.55094667]
[1732938895018,2.10628176,3652.8,3652.7,2.7377]
[1732938895502,2.10628176,3653.2,3653.1,2.7374]
[1732938899275,2.10628176,3653.6,3653.1,2.7374]
[1732938900205,2.10628176,3653.6,3653.2,3.02737034]
[1732938900405,2.10628176,3653.6,3653.2,3.0]
[1732938901119,2.10628176,3653.6,3653.2,3.02737017]
[1732938901324,2.10628176,3653.6,3653.2,3.0]
[1732938901521,0.02385643,3654.9,3653.2,3.0]
[1732938901522,2.10628176,3654.0,3653.2,3.0]
[1732938901723,2.10628176,3655.5,3653.4,1.6436]
[1732938901724,2.10628176,3654.4,3653.4,1.6436]
[1732938901925,2.10628176,3654.4,3653.5,0.19446133]
[1732938902288,2.10628176,3654.4,3653.7,3.0]
[1732938902492,2.10628176,3654.4,3653.5,0.16709694]
[1732938902702,2.10628176,3654.4,3653.9,0.54142011]
[1732938902903,2.10628176,3654.8,3653.9,0.54142011]
[1732938903101,2.10628176,3654.8,3654.0,1.6436]
[1732938903427,2.10628176,3654.8,3654.1,0.21850201]
[1732938904398,2.10628176,3654.8,3654.5,3.0]
[1732938904599,2.10628176,3654.8,3654.1,0.21850201]
[1732938905926,2.10628176,3654.8,3654.5,3.0]
[1732938906114,2.10628176,3654.8,3654.2,3.0]
[1732938906292,0.33984379,3656.4,3653.1,0.02736014]
[1732938906293,2.10628176,3655.3,3654.5,3.0]
[1732938906494,2.10628176,3655.3,3654.6,0.02735647]
[1732938906834,2.10628176,3655.3,3654.4,0.54094163]
[1732938906835,2.10628176,3655.3,3654.7,4.6436]
[1732938907137,2.10628176,3655.3,3655.1,3.0]
[1732938907297,2.10628176,3655.3,3654.7,1.6436]
[1732938907497,2.10628176,3655.3,3654.8,0.16436]
[1732938907690,2.10628176,3654.9,3654.4,0.54094163]
[1732938907894,2.10628176,3654.5,3653.0,1.5844]
[1732938908096,2.10628176,3654.1,3653.0,1.5844]
[1732938909037,2.10628176,3654.1,3653.6,0.54636309]
[1732938909194,2.10628176,3654.5,3653.7,1.5844]
[1732938909389,2.10628176,3654.5,3653.8,0.21307631]
[1732938910440,0.14237575,3656.7,3653.9,1.5844]
[1732938910736,0.14237575,3656.7,3653.9,1.9582]
[1732938910737,2.10628176,3655.3,3653.9,1.9582]
[1732938911236,2.10628176,3655.3,3654.3,1.8582]
[1732938913152,2.10628176,3655.3,3654.8,0.55545363]
[1732938914013,2.10628176,3655.3,3654.9,1.5844]
[1732938914217,2.10628176,3655.3,3655.0,0.21398536]
[1732938914651,2.10628176,3655.7,3655.1,1.5844]
[1732938914848,2.10628176,3656.2,3655.1,1.5844]
[1732938915058,2.10628176,3656.2,3655.2,0.2738]
[1732938915754,2.10628176,3656.2,3655.1,1.5844]
[1732938915915,2.10628176,3656.2,3655.3,0.02734997]
[1732938916120,2.10628176,3656.2,3656.1,3.0]
[1732938916316,2.10628176,3656.2,3655.6,0.53863424]
[1732938916621,2.10628176,3656.2,3656.1,3.0]
[1732938917047,2.10628176,3656.2,3655.6,0.53863424]
[1732938917230,2.10628176,3656.2,3655.7,0.21230342]
[1732938918037,2.10628176,3655.8,3655.7,0.21230342]
[1732938919539,2.10628176,3655.8,3655.3,0.54558895]
[1732938919719,2.10628176,3655.8,3654.6,1.5844]
[1732938919720,2.10628176,3655.4,3654.6,1.5844]
[1732938919925,2.10628176,3655.0,3654.8,0.54359279]
[1732938920251,2.10628176,3655.0,3653.7,1.8582]
[1732938920252,2.10628176,3655.0,3653.7,1.5844]
[1732938920465,2.10628176,3654.6,3654.0,0.55393912]
[1732938920748,2.10628176,3654.6,3654.1,0.02736166]
[1732938920949,2.10628176,3654.6,3654.0,0.55393912]
[1732938922056,2.10628176,3654.2,3654.1,0.02736342]
[1732938922261,2.10628176,3654.2,3653.2,1.5844]
[1732938922262,2.10628176,3654.2,3654.0,0.54310011]
[1732938923461,2.10628176,3654.2,3653.2,1.5844]
[1732938923616,2.10628176,3654.2,3653.3,0.15844]
[1732938924462,2.10628176,3654.2,3653.4,0.02736539]
[1732938924831,2.10628176,3654.2,3653.6,3.0]
[1732938925165,2.10628176,3654.2,3653.4,0.02736538]
[1732938925520,2.10628176,3654.2,3653.7,0.5424432]
[1732938925922,2.10628176,3654.6,3653.8,3.0]
[1732938926649,2.10628176,3654.6,3653.7,0.5424432]
[1732938926850,2.10628176,3654.6,3653.8,3.0]
[1732938927048,2.10628176,3654.6,3653.7,0.5424432]
[1732938927216,2.10628176,3654.2,3653.7,0.5424432]
[1732938928870,2.10628176,3653.8,3653.2,1.5844]
[1732938929172,2.10628176,3653.8,3653.3,0.54646783]
[1732938929470,2.10628176,3653.8,3652.2,1.6066]
[1732938930841,2.10628176,3653.4,3652.2,1.6066]
[1732938931227,2.10628176,3653.4,3652.8,0.55632693]
[1732938931426,0.1,3654.7,3652.9,1.6066]
[1732938931650,2.10628176,3654.1,3653.0,0.21629269]
[1732938932573,2.10628176,3654.1,3653.5,3.0]
[1732938933065,2.10628176,3654.1,3653.0,0.21629269]
[1732938933066,2.10628176,3654.1,3653.6,0.0273673]
[1732938933266,2.10628176,3654.1,3653.1,0.0273664]
[1732938933429,2.10628176,3654.1,3653.1,0.3011664]
[1732938933630,2.10628176,3654.1,3653.2,0.2738]
[1732938933834,2.10628176,3654.1,3653.3,0.0273664]
[1732938934049,2.10628176,3654.1,3653.2,0.2738]
[1732938934268,2.10628176,3654.1,3653.3,0.0273664]
[1732938934467,2.10628176,3654.1,3653.2,0.2738]
[1732938934670,2.10628176,3654.1,3653.0,0.2738]
[1732938934890,2.73576,3655.3,3652.9,1.6066]
[1732938934891,0.02385643,3655.0,3653.2,0.2738]
[1732938935097,2.10628176,3654.7,3653.3,1.8804]
[1732938935467,2.10628176,3654.7,3653.1,0.24367269]
[1732938935468,0.02385643,3655.9,3654.0,3.0]
[1732938935668,2.10628176,3655.3,3654.1,1.6066]
[1732938935871,2.31690994,3655.3,3654.2,3.0]
[1732938936214,0.02385643,3655.9,3654.5,0.2738]
[1732938936215,0.14244671,3655.9,3654.5,0.2738]
[1732938936496,2.10628176,3656.1,3654.6,1.8804]
[1732938937083,2.10628176,3656.1,3654.7,0.02735287]
[1732938938180,2.10628176,3655.3,3654.2,1.6066]
[1732938938379,0.21062818,3655.2,3654.5,0.53817798]
[1732938938622,2.10628176,3655.3,3654.5,0.53817798]
[1732938939069,2.10628176,3654.9,3654.1,0.18804]
[1732938939594,2.10628176,3654.9,3653.9,1.6066]
[1732938939966,2.10628176,3654.9,3653.9,2.16531704]
[1732938940487,2.10628176,3654.9,3654.0,0.02736113]
[1732938941166,2.10628176,3655.1,3653.9,2.16531704]
[1732938941367,0.57385643,3656.0,3653.9,2.16531704]
[1732938941368,2.10628176,3654.7,3653.9,0.55871704]
[1732938941768,2.10628176,3654.7,3653.2,0.2738]
[1732938941968,2.10628176,3654.7,3653.1,1.6066]
[1732938941969,2.10628176,3654.7,3653.4,0.2738]
[1732938942295,2.10628176,3654.7,3653.5,0.02736342]
[1732938942504,2.10628176,3654.7,3654.1,3.0]
[1732938942816,2.10628176,3654.7,3653.9,0.02736207]
[1732938942994,2.10628176,3654.7,3654.1,3.0]
[1732938943205,2.10628176,3654.7,3653.3,0.18804]
[1732938944086,2.10628176,3654.7,3653.5,0.2738]
[1732938944606,2.10628176,3654.7,3653.4,0.206844]
[1732938945123,2.10628176,3654.7,3653.5,0.02736474]
[1732938945408,2.10628176,3654.7,3653.4,0.206844]
[1732938946283,2.10628176,3654.3,3653.4,0.206844]
[1732938946481,2.10628176,3653.9,3652.8,0.2738]
[1732938946697,2.10628176,3653.9,3653.2,0.55805801]
[1732938949579,2.10628176,3654.3,3653.2,0.55805801]
[1732938949882,2.10628176,3654.3,3653.3,0.02736722]
[1732938950086,2.10628176,3654.7,3653.3,0.02736722]
[1732938950981,0.02385643,3655.4,3653.3,0.02736722]
[1732938951193,2.10628176,3654.9,3653.8,3.0]
[1732938951725,2.10628176,3654.9,3653.5,0.02736368]
[1732938952018,2.10628176,3654.9,3653.4,1.6048]
[1732938952322,2.31690994,3654.9,3653.5,0.2162858]
[1732938952525,2.10628176,3654.5,3653.8,3.0]
[1732938952687,2.10628176,3654.5,3653.5,0.2162858]
[1732938952883,2.10628176,3654.1,3653.2,0.55805801]
[1732938954179,2.10628176,3654.1,3652.9,1.6048]
[1732938956293,0.55,3654.0,3652.7,0.57597363]
[1732938957026,2.10628176,3654.1,3652.7,0.54860629]
[1732938957379,2.10628176,3654.1,3652.8,0.02736929]
[1732938957619,2.10628176,3654.1,3652.9,0.21807756]
[1732938957823,2.10628176,3654.1,3653.0,0.02736671]
[1732938958006,2.10628176,3654.1,3652.9,0.2454442]
[1732938958192,2.10628176,3654.1,3652.9,0.21807756]
[1732938958521,2.10628176,3654.1,3653.0,0.2738]
[1732938959400,2.10628176,3654.1,3653.1,0.02736963]
[1732938959882,2.10628176,3654.1,3653.0,0.2738]
[1732938960087,2.10628176,3654.1,3653.1,0.02736902]
[1732938960324,2.10628176,3654.1,3653.0,0.2738]
[1732938960325,2.10628176,3654.1,3653.0,0.301169]
[1732938960820,2.10628176,3654.1,3653.1,0.02736821]
[1732938961022,2.10628176,3654.1,3653.0,0.2738]
[1732938961719,2.10628176,3654.5,3653.1,0.02736635]
[1732938962096,2.10628176,3654.5,3653.0,0.30116606]
[1732938962300,0.1,3655.6,3653.0,0.30116606]
[1732938962301,0.1,3656.7,3654.5,4.5803]
[1732938962530,2.24873669,3655.6,3654.6,0.02735801]
[1732938962690,2.24873669,3655.6,3654.6,0.02735723]
[1732938962889,2.10628176,3655.6,3654.5,1.5803]
[1732938963089,2.10628176,3655.6,3654.6,3.0]
[1732938963342,2.10628176,3655.6,3654.5,1.5803]
[1732938964713,2.10628176,3655.6,3654.4,0.5567135]
[1732938965490,2.10628176,3655.6,3654.5,0.02735906]
[1732938965724,0.14244704,3656.4,3654.6,1.5803]
[1732938965940,2.50574567,3657.3,3654.6,1.5803]
[1732938965941,0.25539819,3657.1,3654.8,1.5803]
[1732938966242,2.10628176,3656.3,3655.0,1.5803]
[1732938966393,2.10628176,3656.3,3655.5,0.55178344]
[1732938967020,2.10628176,3656.3,3655.7,3.0]
[1732938967223,2.10628176,3656.3,3655.5,0.55178344]
[1732938968129,2.10628176,3656.3,3655.7,3.0]
[1732938968317,2.31690994,3656.3,3655.5,0.55178344]
[1732938968493,2.10628176,3656.3,3655.1,0.02735293]
[1732938968699,2.10628176,3656.3,3655.7,3.0]
[1732938969117,0.55,3657.0,3655.5,1.6627]
[1732938969301,2.10628176,3656.6,3655.5,1.6627]
[1732938969933,2.10628176,3656.2,3655.5,1.6627]
[1732938970150,2.10628176,3656.2,3655.6,0.21967123]
[1732938971047,2.10628176,3656.2,3655.0,1.6627]
[1732938972291,2.10628176,3656.2,3655.3,0.55963967]
[1732938973162,0.02385643,3656.1,3655.0,1.6627]
[1732938973318,2.10628176,3655.8,3654.7,1.6627]
[1732938973757,2.10628176,3655.4,3654.7,1.6627]
[1732938973917,2.10628176,3655.4,3654.8,0.16627]
[1732938974458,2.10628176,3655.4,3654.9,0.02735619]
[1732938974620,2.10628176,3655.8,3655.3,3.0]
[1732938974815,2.10628176,3655.8,3654.9,0.53476403]
[1732938975415,0.57385643,3656.8,3654.8,0.16627]
[1732938975416,2.10628176,3655.4,3654.8,0.16627]
[1732938975616,2.10628176,3655.4,3654.6,0.54598707]
[1732938981556,2.10628176,3655.4,3654.1,0.2738]
[1732938981761,2.10628176,3655.4,3654.0,4.6627]
[1732938981762,2.10628176,3655.4,3654.2,0.2738]
[1732938982659,0.55,3655.3,3654.5,0.53416199]
[1732938983689,0.55,3655.3,3654.6,0.02735941]
[1732938984021,2.10628176,3655.4,3654.6,0.02735941]
[1732938984257,2.10628176,3655.4,3654.5,3.53416199]
[1732938984462,2.10628176,3655.4,3654.5,0.53416199]
[1732938986439,2.10628176,3655.4,3654.8,3.0]
[1732938986763,2.10628176,3655.4,3654.5,0.53416199]
[1732938986968,0.55,3655.3,3654.5,0.53416199]
[1732938988547,0.55,3655.3,3649.7,26.8]
[1732938988548,2.10628176,3654.6,3653.6,1.5264]
[1732938988763,2.10628176,3654.6,3652.7,1.5264]
[1732938989068,0.55,3654.5,3652.8,0.02736447]
[1732938989368,0.55,3654.5,3652.7,1.5264]
[1732938989675,0.55,3654.5,3652.9,0.2738]
[1732938990528,0.55,3654.5,3653.0,0.02736544]
[1732938990731,0.55,3654.5,3653.9,3.0]
[1732938991474,2.10628176,3654.6,3653.7,0.82980729]
[1732938991774,0.55,3654.9,3653.8,0.02736273]
[1732938992068,2.10628176,3655.0,3653.8,0.02736273]
[1732938992283,2.10628176,3655.0,3654.0,0.2738]
[1732938992441,2.10628176,3655.0,3654.1,0.45655627]
[1732938992771,0.02385643,3656.7,3654.2,1.82755977]
[1732938992991,0.02385643,3656.7,3654.2,1.8002]
[1732938992992,2.10628176,3655.7,3654.2,1.8002]
[1732938993336,2.10628176,3655.7,3654.6,0.2738]
[1732938993634,0.14248708,3656.5,3654.7,1.5264]
[1732938993869,2.10628176,3656.2,3654.8,0.23677343]
[1732938994030,0.02385643,3656.1,3654.8,0.23677343]
[1732938994378,2.10628176,3655.8,3654.8,0.23677343]
[1732938994580,2.10628176,3655.8,3654.6,0.2738]
[1732938994581,2.10628176,3655.8,3655.0,3.0]
[1732938995083,2.10628176,3655.8,3654.9,1.5264]
[1732938995431,2.10628176,3655.8,3654.6,1.8002]
[1732938996776,2.10628176,3655.8,3654.6,1.5264]
[1732938998155,0.55,3655.7,3654.6,1.5264]
[1732938998354,0.55,3655.7,3654.7,0.20665794]
[1732938999854,2.10628176,3655.4,3654.3,1.8002]
[1732939000147,2.10628176,3655.4,3655.3,0.55455172]
[1732939000341,2.10628176,3655.4,3654.3,1.8002]
[1732939001774,2.10628176,3655.4,3654.4,0.02735779]
[1732939001981,2.10628176,3655.4,3654.5,0.21011357]
[1732939002183,2.10628176,3655.4,3654.5,0.18275578]
[1732939002570,2.10628176,3655.4,3654.6,0.0273578]
[1732939002802,2.10628176,3655.4,3654.7,0.53965854]
[1732939003394,2.10628176,3655.4,3654.8,0.2738]
[1732939004963,2.10628176,3655.4,3654.9,0.02735782]
[1732939005151,2.10628176,3655.4,3654.8,0.2738]
[1732939008350,2.10628176,3655.4,3654.9,0.02735779]
[1732939008548,2.10628176,3655.4,3654.8,0.2738]
[1732939011809,2.10628176,3655.4,3654.8,0.30115784]
[1732939011987,2.10628176,3655.4,3654.8,0.2738]
[1732939013522,2.10628176,3655.0,3653.9,1.8514]
[1732939014088,2.10628176,3654.6,3653.9,0.2738]
[1732939014394,2.10628176,3654.6,3654.2,0.53825262]
[1732939017332,2.10628176,3654.6,3654.4,3.0]
[1732939017544,2.10628176,3654.6,3653.7,0.2738]
[1732939017719,2.10628176,3654.6,3653.9,0.2738]
[1732939018219,2.10628176,3654.6,3654.1,0.54653636]
[1732939018831,2.10628176,3654.6,3653.9,0.2738]
[1732939019330,2.10628176,3654.6,3653.7,0.2738]
[1732939019734,0.02385643,3654.5,3653.7,0.2738]
[1732939020293,2.10628176,3654.6,3653.8,0.2738]
[1732939020603,0.02385643,3655.9,3653.9,1.8787646]
[1732939020821,0.02385643,3655.9,3654.0,0.46167646]
[1732939021135,0.55,3655.2,3654.1,0.02736161]
[1732939021292,0.55,3655.2,3654.0,0.48903808]
[1732939021489,0.55,3655.2,3654.0,0.46167646]
[1732939024332,2.10628176,3655.7,3654.1,0.02736167]
[1732939024497,0.55,3655.6,3654.3,0.2738]
[1732939025005,0.55,3655.6,3654.8,3.0]
[1732939025221,0.55,3655.6,3654.3,0.2738]
[1732939025424,0.55,3655.6,3654.8,3.0]
[1732939025730,2.10628176,3656.1,3654.9,0.02735982]
[1732939025937,2.10628176,3656.1,3654.7,3.0]
[1732939026096,2.10628176,3656.1,3654.6,2.13321183]
[1732939026436,0.02385643,3656.0,3654.6,2.13321183]
[1732939026639,2.10628176,3656.1,3654.6,2.13321183]
[1732939026846,0.02385643,3656.0,3654.7,0.24070118]
[1732939027000,0.55,3656.0,3654.7,0.24070118]
[1732939027335,0.55,3656.0,3654.7,3.51450118]
[1732939028328,0.55,3656.0,3654.8,0.02735707]
[1732939029443,2.10628176,3656.1,3654.7,3.51450118]
[1732939029738,2.10628176,3656.1,3654.7,0.2738]
[1732939029939,0.02385643,3656.0,3654.7,0.2738]
[1732939030303,2.10628176,3656.1,3654.7,0.2738]
[1732939030646,0.02385643,3656.0,3654.7,0.2738]
[1732939030814,0.55,3656.0,3654.7,0.2738]
[1732939031011,0.55,3656.0,3654.8,0.24070118]
[1732939033416,0.55,3656.0,3654.9,0.2738]
[1732939033611,2.10628176,3656.1,3654.9,0.2738]
[1732939033917,2.10628176,3656.1,3654.8,0.24070118]
[1732939033918,2.10628176,3656.1,3656.0,2.73522]
[1732939034132,0.24227933,3657.4,3656.0,2.73522]
[1732939034133,2.10628176,3656.5,3656.0,3.0]
[1732939034307,0.14227933,3657.4,3655.3,4.6021]